Cogmind - Beta 10.1 @@@ ROGUE MODE // 2020.10.08 @ 18:42:39 Player: ELF Result: Self-destructed Performance ------------- Evolutions (1) 500 Regions Visited (2) 400 Robots Destroyed (17) 85 Value Destroyed (307) 307 Prototype IDs (0) 0 Alien Tech Used (0) 0 Bonus (0) 0 TOTAL SCORE: 1292 Bonus ------- None Cogmind --------- Core Integrity 283/400 Matter 256/300 Energy 265/265 System Corruption 0% Temperature Cool (0) Movement Walking (180) Ox2 Location -9/Materials Parts ------- > --- POWER (1) -------- Improved Ion Engine > --- PROPULSION (3) --- Aluminum Leg > --- UTILITY (2) ------ Large Storage Unit > --- WEAPON (3) ------- Heavy Assault Rifle > --- INVENTORY (10) --- Melee Analysis Suite Peak State ------------ > --- POWER ------------ Improved Ion Engine > --- PROPULSION ------- Aluminum Leg Aluminum Leg Improved Aluminum Leg > --- UTILITY ---------- Large Storage Unit > --- WEAPON ----------- Light Assault Rifle Heavy Assault Rifle > --- INVENTORY -------- Ion Engine Melee Analysis Suite [Rating: 10] Favorites ----------- Power Light Ion Engine Engine Light Ion Engine Propulsion Compact Wheel Leg Aluminum Leg Wheel Compact Wheel Utility Large Storage Unit Storage Large Storage Unit Weapon Assault Rifle Energy Gun EM Pulse Gun Ballistic Gun Assault Rifle Launcher Grenade Launcher Build | -11 -10 -9 ------- Run | Scr Mat Mat Slots Evolved 2 | . . 2 Power . | . . . Propulsion 1 | . . 1 Utility . | . . . Weapon 1 | . . 1 Parts Attached 18 | 7 7 4 Power 3 | 1 1 1 Engine 3 | 1 1 1 Core . | . . . Reactor . | . . . Propulsion 5 | 2 2 1 Treads . | . . . Leg 3 | . 2 1 Wheel 2 | 2 . . Hover . | . . . Flight . | . . . Utility 2 | 1 1 . Device . | . . . Storage 2 | 1 1 . Processor . | . . . Hackware . | . . . Protection . | . . . Artifact . | . . . Weapon 8 | 3 3 2 Energy Gun 1 | 1 . . Energy Cannon . | . . . Ballistic Gun 5 | 2 2 1 Ballistic Cannon . | . . . Launcher 2 | . 1 1 Special Weapon . | . . . Impact Weapon . | . . . Slashing Weapon . | . . . Piercing Weapon . | . . . Special Melee Weapon . | . . . Unidentified Prototypes . | . . . Parts Lost 8 | . 3 5 Power 1 | . 1 . Propulsion 3 | . 1 2 Utility . | . . . Weapon 4 | . 1 3 Highest Loss Streak 3 | . 1 3 Average Slot Usage (%) 81 | . 84 71 Engine 12 | . 13 11 Leg 8 | . 1 27 Wheel 19 | . 26 . Storage 13 | . 14 11 Energy Gun 7 | . 10 . Ballistic Gun 17 | . 17 16 Launcher 1 | . . 4 Naked Turns . | . . . Heaviest Build 27 | 11 25 27 Greatest Support 33 | 32 32 33 Greatest Overweight (x) 1 | . 1 1 Average Overweight (x) . | . . . Largest Inventory Capacity 12 | 6 12 10 Average Capacity 8 | 5 9 10 Most Carried 6 | 4 6 2 Average Carried 3 | 2 4 . Final Capacity 10 | 6 10 10 Final Carried 4 | 4 1 1 Class Distribution -------------------- 100% | Mutant Dominant Class ---------------- Mutant | -10/Materials Mutant | -9/Materials Resources | -11 -10 -9 ----------- Run | Scr Mat Mat Matter Collected 530 | 273 164 93 Remotely . | . . . Salvage Created 366 | 54 214 98 Parts 30 | 2 18 10 Haulers Intercepted 1 | . 1 . Recyclers Shooed . | . . . Parts Field Recycled . | . . . Retrieved Matter . | . . . Parts Self-Destructed . | . . . Prevented . | . . . Kills | -11 -10 -9 ------- Run | Scr Mat Mat Combat Hostiles Destroyed 11 | . 8 3 Guns 4 | . 3 1 AOE 7 | . 5 2 Classes Destroyed 8 | 1 5 2 Worker 2 | . 1 1 Builder 2 | . 1 1 Hauler 1 | . 1 . Recycler 1 | 1 . . Swarmer 6 | . 6 . Grunt 3 | . 2 1 Duelist 1 | . . 1 Sentry 1 | . . 1 Best Kill Streak 6 | 1 6 3 Combat Bots Only 6 | . 6 2 Max Kills in Single Turn 4 | 1 4 2 Gunslinging . | . . . Exploded 4 | . 4 2 Melee . | . . . Uniques/NPCs Destroyed . | . . . Combat | -11 -10 -9 -------- Run | Scr Mat Mat Damage Taken 1095 | . 419 676 Core 240 | . 123 117 Absorbed by Shields . | . . . Core Remaining (%) 75 | 100 50 . Volleys Fired 54 | 1 31 22 Largest 2 | 2 2 2 Hottest 70 | 60 70 43 Shots Fired 81 | 2 56 23 Gun 70 | 2 52 16 Cannon . | . . . Launcher 11 | . 4 7 Special . | . . . Kinetic 53 | 1 36 16 Thermal . | . . . Explosive 11 | . 4 7 Electromagnetic 17 | 1 16 . Robot Hit Streak 9 | 2 9 8 Robot Miss Streak 4 | . 4 3 Penetration Max . | . . . Secondary Targets . | . . . Shots Hit Robots 47 | 2 31 14 Core Hits 26 | 1 16 9 Critical Hits 2 | . 2 . Critical Kills . | . . . Critical Parts Destroyed 2 | . 2 . Melee Attacks . | . . . Impact . | . . . Slashing . | . . . Piercing . | . . . Sneak Attacks . | . . . Combat Hostiles . | . . . Follow-up Attacks . | . . . Damage Inflicted 1067 | 50 651 366 Guns 459 | 13 325 121 Cannons . | . . . Explosions 608 | 37 326 245 Melee . | . . . Ramming . | . . . Kinetic 357 | . 236 121 Thermal 37 | 37 . . Explosive 571 | . 326 245 Electromagnetic 102 | 13 89 . Impact . | . . . Slashing . | . . . Piercing . | . . . Highest Corruption . | . . . Average Corruption . | . . . Corruption Purged . | . . . Overload Shots . | . . . Overflow Damage 17 | . 17 . Projectiles . | . . . Explosions 17 | . 17 . Melee . | . . . Knockbacks . | . . . Impact . | . . . Kinetic . | . . . Secondary . | . . . Self-Inflicted Damage 134 | . 30 104 Shots 6 | . 2 4 Rammed . | . . . Targets Rammed . | . . . Kicked . | . . . Crushed . | . . . Highest Temperature 69 | . 69 6 Average Temperature 29 | . 36 3 Received Heat Transfer 273 | . 120 153 Siege Activations . | . . . Robots Corrupted . | . . . Combat Hostiles . | . . . Parts Fried . | . . . Impact Corruptions . | . . . Robots Melted . | . . . Combat Hostiles . | . . . Parts Melted . | . . . Heat Transferred 50 | 50 . . Parts Sabotaged . | . . . Parts Stolen . | . . . Parts Stripped . | . . . Power Chain Reactions 1 | 1 . . Missiles Intercepted . | . . . Alert | -11 -10 -9 ------- Run | Scr Mat Mat Peak Influence 248 | 5 248 139 Initial 39 | . 3 39 Average 88 | 1 97 112 Maximum Alert Level 1 | . 1 . Low Security (%) 92 | 100 87 100 Level 1 7 | . 12 . Level 2 . | . . . Level 3 . | . . . Level 4 . | . . . Level 5 . | . . . High Security . | . . . Max Security . | . . . Squads Dispatched . | . . . Investigation . | . . . Extermination . | . . . Reinforcement . | . . . Assault . | . . . Garrison . | . . . Intercept . | . . . Construction Impeded . | . . . Haulers Reinforced . | . . . Stealth | -11 -10 -9 --------- Run | Scr Mat Mat Distress Signals 1 | . 1 . Communications Jammed . | . . . Distress Signals . | . . . Times Spotted 22 | . 14 8 Peak Tracking Total 5 | . 5 5 Tactical Retreats 2 | . 2 . Traps | -11 -10 -9 ------- Run | Scr Mat Mat Traps Triggered 1 | . 1 . Indirectly . | . . . Trap Hack Attempts . | . . . Triggered . | . . . Disarmed . | . . . Reprogrammed . | . . . Reused . | . . . Traps Extracted . | . . . Installed . | . . . Triggered . | . . . Machines | -11 -10 -9 ---------- Run | Scr Mat Mat Machines Disabled 2 | . 1 1 Max in Single Turn 1 | . 1 1 Machines Sabotaged . | . . . Garrisons Compromised . | . . . Overloaded Fab Kills . | . . . Fab Network Shutdowns . | . . . Hacking | -11 -10 -9 --------- Run | Scr Mat Mat Machines Accessed 4 | . 2 2 Terminals 4 | . 2 2 Fabricators . | . . . Repair Stations . | . . . Recycling Units . | . . . Scanalyzers . | . . . Garrison Access . | . . . Total Hacks 13 | . 7 6 Successful 4 | . 2 2 Failed 9 | . 5 4 Catastrophic . | . . . Database Lockouts . | . . . Manual 11 | . 5 6 Terminals 13 | . 7 6 Fabricators . | . . . Repair Stations . | . . . Recycling Units . | . . . Scanalyzers . | . . . Garrison Access . | . . . Terminal Hacks 1 | . 1 . Unreport Threat 1 | . 1 . Fabricator Hacks . | . . . Repair Station Hacks . | . . . Recycling Unit Hacks . | . . . Scanalyzer . | . . . Garrison Access Hacks . | . . . Unauthorized Hacks 3 | . 1 2 Terminals 3 | . 1 2 Track 2 | . 1 1 Botnet 1 | . . 1 Fabricators . | . . . Repair Stations . | . . . Recycling Units . | . . . Scanalyzers . | . . . Garrison Access . | . . . Data Cores Recovered . | . . . Used . | . . . Hacking Detections 4 | . 2 2 Full Trace Events . | . . . Feedback Events . | . . . Feedback Blocked . | . . . Robot Schematics Acquired . | . . . Robots Built . | . . . Matter . | . . . Time . | . . . Total Robot Build Rating . | . . . Part Schematics Acquired . | . . . Parts Built . | . . . Matter . | . . . Time . | . . . Total Part Build Rating . | . . . Parts Repaired . | . . . Time . | . . . Parts Recycled . | . . . Recycled Matter . | . . . Retrieved Matter . | . . . Retrieved Components . | . . . Parts Scanalyzed . | . . . Part Schematics Acquired . | . . . Parts Damaged . | . . . Bothacking | -11 -10 -9 ------------ Run | Scr Mat Mat Used RIF Installer . | . . . Robots Hacked . | . . . Non-combat . | . . . Combat . | . . . Robot Hacks Applied . | . . . Relay Couplers Released . | . . . Robots Rewired . | . . . Allies Hacked . | . . . Hacks Repelled . | . . . Allies | -11 -10 -9 -------- Run | Scr Mat Mat Total Allies . | . . . Largest Group . | . . . Highest-Rated Group . | . . . Highest-Rated Ally . | . . . Total Orders . | . . . Ally Attacks . | . . . Total Damage . | . . . Kills . | . . . Allies Corrupted . | . . . Allies Melted . | . . . Intel | -11 -10 -9 ------- Run | Scr Mat Mat Robot Analysis Total . | . . . Derelict Logs Recovered . | . . . Drone Launches . | . . . Drone Recoveries . | . . . Exploration | -11 -10 -9 ------------- Run | Scr Mat Mat Turns Passed 559 | 71 365 123 Spaces Moved 361 | 57 253 51 Core 16 | 16 . . Treads . | . . . Legs 67 | . 16 51 Wheels 278 | 41 237 . Hover . | . . . Flight . | . . . Fastest Speed 50 | 50 100 120 Average Speed 103 | 85 103 128 Slowest Speed 150 | 100 150 150 Overloaded Moves . | . . . Propulsion Burnouts . | . . . Robots Hopped . | . . . Cave-ins Triggered . | . . . Exploration Rate (%) 20 | 3 51 8 Regions Visited 2 Branch Regions . Pre-discovered Areas . | . . . Known Exits Taken . | . . . Unknown Exits Taken 2 | 1 1 . Scrap Searched . | . . . Spaces Dug . | . . . Terrain Destroyed 52 | 3 22 27 Melee . | . . . Projectile . | . . . AOE 52 | 3 22 27 Terrain Rammed . | . . . Walls Destroyed . | . . . Machines Disabled . | . . . Actions | -11 -10 -9 --------- Run | Scr Mat Mat Total 466 | 76 303 87 Wait 16 | 2 9 5 Move 359 | 56 252 51 Hop . | . . . Pick Up 16 | 10 2 4 Fast Attach . | . . . Attach 14 | 6 5 3 Detach . | . . . Swap 4 | 1 2 1 Drop 3 | . 2 1 Fire 54 | 1 31 22 Melee . | . . . Ram . | . . . Kick . | . . . Crush . | . . . Escape Stasis . | . . . Rewire . | . . . Trap . | . . . Miscellaneous . | . . . Route ------- -11/Scrapyard -10/Materials (discovered 2 exits: *Mat / [*Min]) -9/Materials History --------- Turn | Location | Event 2 | -11/Scrapyard | Met Revision 17 18 | -11/Scrapyard | Discovered new exit (range 15) 72 | -11/Scrapyard | Entered Materials 234 | -10/Materials | Discovered new exit (range 15) 314 | -10/Materials | Build established: Mutant 417 | -10/Materials | Discovered new exit (range 5) 437 | -10/Materials | Entered another Materials area 437 | -9/Materials | Evolved 2 slots: Propulsion x1, Weapon x1 560 | -9/Materials | Self-destructed Last Messages --------------- 00515_ R-06 Scavenger collects Ion Engine. 00516_ R-06 Scavenger collects Heat Sink. 00517_ R-06 Scavenger collects Lgt. Treads. 00518_ R-06 Scavenger collects Med. Matter Pod. 00519_ Connecting with Terminal... 00519_ Current location identified: Materials 00528_ The unstable cave ceiling collapses. 00530_ Connecting with Terminal... >>Trojan(Botnet) Trojan loaded successfully. Testing... Terminal linked with 0 systems. Awaiting botnet instructions. >>Trojan(Track) Trojan loaded successfully. Testing... Tracking enabled and active. 00545_ Lgt. Assault Rifle destroyed. 00551_ Imp. Aluminum Leg destroyed. 00554_ Aluminum Leg destroyed. Map ----- +----------------------------------------------------+ | ?????????????????????????????????????????????????? | | ?????????????????????????????????????????????????? | | ?????????????????????????????????????????????????? | | ?????????????????????????????????????????????????? | | ?????????????????????????????????????????????????? | | ?????????????????????????????????????????????????? | | ?????????????????????????????????????????????????? | | ?????????????????????????????????????????????????? | | ?????????????????????????????????????????????????? | | ?????????????????????????????????????????????????? | | ?????????????????????????????????????????????????? | | ?????????????????????????????????????????????????? | | ?????????????????????????????????????????????????? | | ?????????????????????????????????????????????????? | | ?????????????????????????????????????????????????? | | ?????????????###?????????????????????????????????? | | ?????????????? ????????????????????????????????? | | ???????????????? ???????????????????????????????? | | ????????????????? ????#######???????????????????? | | ?????????????????? #### #???????????????????? | | ???????????????????? #???????????????????? | | ????????????????????? r r T #???????????????????? | | ?????????????????????? ga sr###########?????????? | | ???????????????????????# s # #?????????? | | ????????????????????????#ss ##"S #?????????? | | ????????????????????????#@ ##""" #?????????? | | ????????????????????????# # " #?????????? | | ????????????????????????# # #?????????? | | ????????????????????????# ## | ####??????? | | ????????????????????????# ## u ! # #??????? | | ???????????????????????## ## ! #??????? | | ???????????????????????# ### # ######## | | ???????????????????????# | | ???????????????????????# T | | ???????????????????????# ! | | ???????????????????????# ###/ ####### | | ???????????????????????# ##### #?? | | ???????????????????????# ????#""" """ # #?? | | ???????????????????????# ????#"T """ #?? | | ???????????????????????# ????#""" """ # #?? | | ???????????????????????# ????# t # #?? | | ???????????????????????# ????# """ # #?? | | ???????????????????????# ????# """ # #?? | | ???????????????????????? ????# """ # #?? | | ?????????????????????????????# # #?? | | ?????????????????????????????###################?? | | ?????????????????????????????????????????????????? | | ?????????????????????????????????????????????????? | | ?????????????????????????????????????????????????? | | ?????????????????????????????????????????????????? | +----------------------------------------------------+ Best States ------------- Heat Dissipation 28 Energy Generation 12 Energy Capacity 265 Matter Stores 300 Matter Capacity 300 Sight Range 16 Terrain Scan Density 10 Evasion (%) 40 Item Schematics ----------------- None Robot Schematics ------------------ None Fabricated ------------ Nothing Alien Tech Used ----------------- None Achievements -------------- None Challenges ------------ None Game ------ Seed RagnarokVortexRay Manual? 0 Play Time 00:08:53 Cumulative 39.8 hours Start 2020.10.08 @ 18:32:56 End 2020.10.08 @ 18:42:39 Sessions 1 Manual Loads 0 Difficulty Rogue Special Mode None Game No. 34 Rogue 34 Adventurer 0 Explorer 0 Win Type - Total 0 Types 0/0/0/0/0/0/0/0/0 Lore% 37 Gallery% 42 Achievement% 36 Wizard Run 0 Options --------- ASCII 0 Keyboard 0 Movement Numpad Keybinds 0 Fullscreen 2 Font 18/SmallcapsGlow Map View 76x50 Tactical HUD 1 Map Filters NONE Filters NONE Steam 1 RUN: 0659d8ca-bbe0-47d3-8373-4e39c5349836